bitfinex-derivatives/quotes_BTCF0:USTF0_20260207
["timestamp","ask_amount","ask_price","bid_price","bid_amount"]
[1770460014462,0.57177252,68125.0,68108.0,0.01469]
[1770460014666,0.57177252,68125.0,68108.0,0.55441277]
[1770460014964,0.57177252,68144.0,68108.0,0.55441277]
[1770460015468,0.57177252,68135.0,68108.0,0.55441277]
[1770460015964,0.57177252,68135.0,68111.0,0.53972277]
[1770460016153,0.57177252,68135.0,68113.0,0.53972277]
[1770460016757,0.57177252,68135.0,68114.0,0.55441177]
[1770460017157,0.57177252,68135.0,68114.0,0.53972277]
[1770460017363,0.57177252,68134.0,68114.0,0.53972277]
[1770460018959,0.014685,68133.0,68114.0,0.53972277]
[1770460019360,0.57177252,68134.0,68114.0,0.55441177]
[1770460019759,0.57177252,68134.0,68116.0,0.014689]
[1770460020162,0.57177252,68134.0,68116.0,0.55441177]
[1770460020369,0.57177252,68134.0,68102.0,0.014692]
[1770460020370,0.57177252,68147.0,68124.0,0.53972277]
[1770460020866,0.57177252,68147.0,68129.0,0.53972277]
[1770460021078,0.57177252,68153.0,68129.0,0.53972277]
[1770460021268,0.57177252,68151.0,68129.0,0.53972277]
[1770460021459,0.014678,68166.0,68129.0,0.53972277]
[1770460021460,0.57177252,68149.0,68129.0,0.53972277]
[1770460022469,0.57177252,68149.0,68129.0,0.55440877]
[1770460023056,0.57177252,68155.0,68132.0,0.53972277]
[1770460026972,0.58645352,68155.0,68132.0,0.53972277]
[1770460027160,0.55414061,68152.0,68125.0,0.54198008]
[1770460027472,0.55414061,68152.0,68120.0,0.15102994]
[1770460027671,0.55414061,68152.0,68120.0,0.14957465]
[1770460027966,0.55414061,68152.0,68120.0,0.69155473]
[1770460028363,0.55414061,68147.0,68123.0,0.014687]
[1770460028563,0.55414061,68147.0,68126.0,0.54198008]
[1770460028876,0.56882161,68153.0,68130.0,0.54198008]
[1770460029470,0.55414061,68150.0,68130.0,0.54198008]
[1770460029972,0.55414061,68150.0,68130.0,0.53923861]
[1770460030764,0.014682,68149.0,68130.0,0.53923861]
[1770460030964,0.53176201,68146.0,68123.0,0.588964]
[1770460032672,0.53176201,68146.0,68125.0,0.014687]
[1770460032859,0.53176201,68146.0,68125.0,0.588964]
[1770460033065,0.53176201,68153.0,68125.0,0.574277]
[1770460033372,0.53176201,68148.0,68128.0,0.574277]
[1770460037475,0.53176201,68145.0,68122.0,0.574277]
[1770460038274,0.53176201,68145.0,68123.0,0.014687]
[1770460042071,0.53176201,68136.0,68116.0,0.17510052]
[1770460042375,0.53176201,68133.0,68115.0,0.574277]
[1770460042769,0.53176201,68133.0,68110.0,0.574277]
[1770460042973,0.54644701,68133.0,68110.0,0.574277]
[1770460046276,0.53176201,68127.0,68104.0,0.574277]
[1770460046574,0.53176201,68124.0,68104.0,0.588968]
[1770460047277,0.014688,68118.0,68104.0,0.574277]
[1770460047479,0.53176201,68120.0,68104.0,0.574277]
[1770460049373,0.53176201,68128.0,68104.0,0.574277]
[1770460049879,0.53176201,68125.0,68104.0,0.574277]
[1770460050380,0.53176201,68122.0,68104.0,0.574277]
[1770460050565,0.53176201,68120.0,68100.0,0.15102994]
[1770460051381,0.53176201,68120.0,68101.0,0.574277]
[1770460052371,0.53176201,68127.0,68104.0,0.574277]
[1770460052573,0.53176201,68127.0,68108.0,0.574277]
[1770460053575,0.53176201,68140.0,68120.0,0.574277]
[1770460053867,0.014683,68144.0,68117.0,0.15102994]
[1770460053868,0.53176201,68137.0,68118.0,0.574277]
[1770460055081,0.53176201,68135.0,68111.0,0.588967]
[1770460055976,0.014682,68149.0,68111.0,0.574277]
[1770460055977,0.52533497,68130.0,68111.0,0.574277]
[1770460056778,0.52533497,68130.0,68108.0,0.01469]
[1770460057170,0.52533497,68130.0,68108.0,0.54490651]
[1770460057578,0.52533497,68127.0,68108.0,0.54490651]
[1770460057882,0.54002197,68127.0,68104.0,0.014691]
[1770460058083,0.54002197,68127.0,68104.0,0.55959751]
[1770460058278,0.52533497,68127.0,68100.0,0.15102994]
[1770460058481,0.52533497,68122.0,68100.0,0.15102994]
[1770460059583,0.52533497,68120.0,68100.0,0.15102994]
[1770460060877,0.52533497,68120.0,68100.0,0.15096994]
[1770460063386,0.52533497,68118.0,68100.0,0.15096994]
[1770460064982,0.52533497,68124.0,68101.0,0.54490651]
[1770460065179,0.54002197,68123.0,68101.0,0.54490651]
[1770460065486,0.54002297,68121.0,68101.0,0.54490651]
[1770460067391,0.52533497,68121.0,68101.0,0.54490651]
[1770460069390,0.52533497,68128.0,68101.0,0.55959851]
[1770460069586,0.54002097,68128.0,68103.0,0.014692]
[1770460069780,0.54002097,68128.0,68104.0,0.54490651]
[1770460069986,0.52533497,68128.0,68107.0,0.54490651]
[1770460070288,0.52533497,68137.0,68113.0,0.54490651]
[1770460071390,0.52533497,68133.0,68113.0,0.54490651]
[1770460071981,0.52533497,68133.0,68113.0,0.6621205]
[1770460073891,0.014682,68148.0,68110.0,0.18979052]
[1770460073892,0.52533497,68131.0,68112.0,0.11721399]
[1770460074695,0.52533497,68131.0,68112.0,0.6621205]
[1770460074894,0.014682,68148.0,68114.0,0.6768095]
[1770460074895,0.54001897,68138.0,68114.0,0.6768095]
[1770460075095,0.52533497,68135.0,68114.0,0.6621205]
[1770460075793,0.52533497,68135.0,68114.0,0.54490651]
[1770460075995,0.54001997,68136.0,68114.0,0.54490651]
[1770460081200,0.52533497,68133.0,68114.0,0.54490651]
[1770460081397,0.52533497,68133.0,68111.0,0.11721399]
[1770460081598,0.52533497,68133.0,68112.0,0.54490651]
[1770460083803,0.52533497,68133.0,68112.0,0.6621205]
[1770460084197,0.52533497,68133.0,68112.0,0.6768105]
[1770460084894,0.52533497,68133.0,68114.0,0.54490651]
[1770460085295,0.52533497,68131.0,68114.0,0.54490651]
[1770460086402,0.52533497,68131.0,68112.0,0.11721399]
[1770460087290,0.52533497,68131.0,68111.0,0.69736225]
[1770460087702,0.52533497,68131.0,68108.0,0.11721399]
[1770460087902,0.52533497,68131.0,68107.0,0.11721399]
[1770460088202,0.55183339,68122.0,68107.0,0.11721399]
[1770460088403,0.55183339,68115.0,68100.0,0.11721399]
[1770460088705,0.55183339,68115.0,68099.0,0.69736225]
[1770460089001,0.55183339,68115.0,68099.0,0.58014826]
[1770460090001,0.014685,68133.0,68098.0,0.11721399]
[1770460090002,0.58249337,68113.0,68098.0,0.09050449]
[1770460090208,0.58249337,68109.0,68091.0,0.55699491]
[1770460092309,0.58249337,68109.0,68088.0,0.17510052]
[1770460092504,0.58249337,68109.0,68087.0,0.17510052]
[1770460092807,0.58249337,68106.0,68086.0,0.55699491]
[1770460094707,0.58249337,68119.0,68097.0,0.55699491]
[1770460095013,0.58249337,68112.0,68090.0,0.55699491]
[1770460097702,0.01469,68113.0,68090.0,0.55699491]
[1770460097703,0.59718337,68111.0,68090.0,0.55699491]
[1770460098112,0.58249337,68111.0,68090.0,0.57168891]
[1770460098903,0.58249337,68117.0,68100.0,0.15092341]
[1770460099613,0.59718237,68116.0,68100.0,0.15092341]
[1770460101211,0.58249337,68111.0,68100.0,0.1507336]
[1770460102512,0.58249337,68111.0,68089.0,0.014694]
[1770460102713,0.58249337,68111.0,68089.0,0.57168891]
[1770460103316,0.58249337,68111.0,68089.0,0.55699491]
[1770460103511,0.58249337,68109.0,68089.0,0.55699491]
[1770460103814,0.58249337,68109.0,68091.0,0.55699491]
[1770460104215,0.58249337,68107.0,68085.0,0.55699491]
[1770460104415,0.58249337,68107.0,68086.0,0.57168991]
[1770460105116,0.58249337,68107.0,68086.0,0.55699491]
[1770460105318,0.58249337,68107.0,68087.0,0.014695]
[1770460105619,0.58249337,68107.0,68087.0,0.57168991]
[1770460106115,0.58249337,68107.0,68087.0,0.56690744]
[1770460107814,0.58249337,68107.0,68087.0,0.55699491]
[1770460108411,0.58249337,68107.0,68087.0,0.54836157]
[1770460109512,0.59718437,68107.0,68087.0,0.54836157]
[1770460110221,0.59718437,68107.0,68087.0,0.44464764]
[1770460114220,0.014688,68123.0,68080.0,0.15102488]
[1770460114221,0.58249337,68100.0,68080.0,0.15102488]
[1770460114425,0.014689,68114.0,68080.0,0.15102488]
[1770460114426,0.58249337,68098.0,68080.0,0.15102488]
[1770460114627,0.58249337,68098.0,68075.0,0.55710469]
[1770460114829,0.58249337,68091.0,68075.0,0.55710469]
[1770460115020,0.58249337,68091.0,68075.0,0.00010978]
[1770460116114,0.58312013,68087.0,68065.0,0.1756127]
[1770460116318,0.58312013,68087.0,68064.0,0.0147]
[1770460116514,0.58312013,68087.0,68064.0,0.58135904]
[1770460116925,0.58312013,68087.0,68064.0,0.56665904]
[1770460117125,0.58312013,68083.0,68064.0,0.56665904]
[1770460117628,0.58312013,68075.0,68055.0,0.1756127]
[1770460117834,0.58312013,68070.0,68051.0,0.56665904]
[1770460118024,0.58312013,68068.0,68051.0,0.56665904]
[1770460119036,0.58312013,68068.0,68050.0,0.15102488]
[1770460119233,0.58312013,68068.0,68050.0,0.04730481]
[1770460119434,0.58312013,68068.0,68050.0,0.15117865]
[1770460119733,0.58312013,68066.0,68050.0,0.15117865]
[1770460121133,0.58312013,68057.0,68040.0,0.00018109]
[1770460121435,0.58312013,68054.0,68040.0,0.00018109]
[1770460121634,0.00010489,68053.0,68040.0,0.00018109]
[1770460122433,0.00010489,68053.0,68038.0,0.55317066]
[1770460122636,0.59782313,68052.0,68030.0,0.15117865]
[1770460122832,0.59782313,68050.0,68031.0,0.56665904]
[1770460123035,0.58312013,68050.0,68031.0,0.56665904]
[1770460123837,0.58312013,68050.0,68013.0,0.21951588]
[1770460123838,0.35840075,68005.0,67990.0,0.0648]
[1770460124037,0.38586158,68002.0,67977.0,0.56665904]
[1770460124336,0.37114758,68027.0,67983.0,0.56685904]
[1770460124542,0.014711,68013.0,67983.0,0.56685904]
[1770460124744,0.00018358,68012.0,67983.0,0.56665904]
[1770460125045,0.014712,68008.0,67983.0,0.56665904]
[1770460125247,0.014712,68008.0,67983.0,0.4492683]
[1770460125636,0.00018358,68012.0,67983.0,0.4492683]
[1770460125944,0.4887219,68012.0,67983.0,0.4492683]
[1770460126532,0.53931944,68003.0,67983.0,0.4492683]
[1770460126731,0.53931944,67999.0,67965.0,0.56665904]
[1770460126944,0.53931944,67997.0,67965.0,0.56665904]
[1770460127240,0.00016853,67998.0,67974.0,0.56665904]
[1770460127745,0.014712,68007.0,67974.0,0.56665904]
[1770460128145,0.014713,68004.0,67974.0,0.56665904]
[1770460128742,0.014713,68004.0,67961.0,0.00012269]
[1770460128743,0.073531,68037.0,67992.0,0.56665904]
[1770460128948,0.51917692,68015.0,67986.0,0.56665904]
[1770460129247,0.014706,68039.0,67975.0,0.67508]
[1770460129248,0.51917692,68033.0,67988.0,0.56665904]
[1770460129546,0.51917692,68028.0,67990.0,0.56665904]
[1770460130340,0.014709,68021.0,67990.0,0.56665904]
[1770460130542,0.014709,68025.0,67992.0,0.56665904]
[1770460130744,0.00010729,68024.0,67992.0,0.56665904]
[1770460131351,0.00010729,68024.0,67994.0,0.56665904]
[1770460132750,0.00010729,68024.0,67994.0,0.58137404]
[1770460134350,0.47990677,68023.0,67994.0,0.56665904]
[1770460134549,0.014711,68014.0,67994.0,0.56665904]
[1770460134945,0.47990677,68015.0,67994.0,0.56665904]
[1770460135751,0.49486405,68022.0,67994.0,0.56641076]
[1770460137351,0.48015505,68022.0,67987.0,0.56665904]
[1770460137654,0.00010729,68024.0,67987.0,0.56665904]
[1770460137655,0.4713745,68014.0,67987.0,0.56665904]
[1770460138155,0.014712,68009.0,67987.0,0.56665904]
[1770460138458,0.00014055,68008.0,67987.0,0.56665904]
[1770460138759,0.00014055,68008.0,67987.0,0.58137604]
[1770460140357,0.014708,68029.0,67997.0,0.56665904]
[1770460141555,0.43968127,68044.0,68009.0,0.56665904]
[1770460141758,0.43968127,68044.0,68013.0,0.56665904]
[1770460142160,0.014705,68042.0,68013.0,0.58137004]
[1770460142353,0.014705,68040.0,68013.0,0.58137004]
[1770460142766,0.45438627,68044.0,68013.0,0.58137004]
[1770460143061,0.014705,68042.0,68013.0,0.58137004]
[1770460143363,0.014704,68045.0,68017.0,0.56665904]
[1770460143563,0.43746572,68051.0,68019.0,0.56665904]
[1770460143564,0.014704,68046.0,68019.0,0.56665904]
[1770460143763,0.014703,68049.0,68021.0,0.56665904]
[1770460144065,0.014703,68049.0,68023.0,0.56665904]
[1770460144453,0.014704,68047.0,68023.0,0.56665904]
[1770460145761,0.014699,68068.0,68027.0,0.56665904]
[1770460145762,0.014702,68053.0,68027.0,0.56665904]
[1770460145963,0.014702,68057.0,68029.0,0.57987737]
[1770460146759,0.014702,68055.0,68029.0,0.57987737]
[1770460146965,0.014702,68055.0,68029.0,0.59458437]
[1770460147866,0.41415124,68058.0,68029.0,0.59458437]
[1770460148060,0.41415124,68058.0,68032.0,0.57987737]
[1770460148368,0.014702,68054.0,68032.0,0.57987737]
[1770460148960,0.34531353,68054.0,68032.0,0.57987737]
[1770460149567,0.33061153,68051.0,68017.0,0.57987737]
[1770460149761,0.55101748,68034.0,68010.0,0.00012232]
[1770460149961,0.55101748,68034.0,68012.0,0.56050712]
[1770460150260,0.53631048,68034.0,68012.0,0.56050712]
[1770460150865,0.55101548,68041.0,68014.0,0.57521812]
[1770460152262,0.014706,68039.0,68014.0,0.57521812]
[1770460153772,0.014705,68042.0,68014.0,0.57521812]
[1770460154967,0.53631048,68048.0,68014.0,0.56050712]
[1770460155372,0.53631048,68044.0,68014.0,0.56050712]
[1770460156269,0.014706,68039.0,68014.0,0.56050712]
[1770460156866,0.014705,68042.0,68015.0,0.014711]
[1770460157169,0.014705,68040.0,68018.0,0.56050712]
[1770460158168,0.53631048,68044.0,68018.0,0.56050712]
[1770460158565,0.014706,68038.0,68018.0,0.56050712]
[1770460160574,0.014706,68037.0,68018.0,0.56050712]
[1770460164370,0.53631048,68049.0,68021.0,0.56050712]
[1770460164570,0.53631048,68046.0,68021.0,0.56050712]
[1770460164982,0.014706,68038.0,68021.0,0.56050712]
[1770460165371,0.014705,68041.0,68021.0,0.56050712]
[1770460168279,0.014706,68039.0,68021.0,0.56050712]
[1770460173285,0.014705,68042.0,68021.0,0.56050712]
[1770460174991,0.0147,68063.0,68026.0,0.56050712]
[1770460174992,0.53631048,68052.0,68026.0,0.56050712]
[1770460175192,0.014703,68050.0,68031.0,0.56050712]
[1770460178192,0.54696123,68047.0,68031.0,0.56050712]
[1770460178596,0.54696123,68054.0,68031.0,0.56050712]
[1770460178795,0.014703,68050.0,68031.0,0.56050712]
[1770460179301,0.014703,68053.0,68031.0,0.56050712]
[1770460180287,0.014703,68051.0,68031.0,0.56050712]
[1770460180492,0.26551812,68034.0,68014.0,0.58181157]
[1770460180799,0.014704,68047.0,68003.0,0.58181157]
[1770460180800,0.01471,68018.0,68003.0,0.58181157]
[1770460180992,0.26551812,68022.0,68005.0,0.95072]
[1770460181296,0.28022812,68019.0,68005.0,0.64884233]
[1770460181689,0.28022812,68019.0,68005.0,0.58924786]
[1770460181886,0.01471,68017.0,68005.0,0.58924786]
[1770460184594,0.014711,68014.0,68005.0,0.58924786]
[1770460184799,0.30554859,68017.0,68005.0,0.58924786]
[1770460185399,0.01471,68016.0,68005.0,0.58924786]
[1770460186803,0.01571,68016.0,68005.0,0.58924786]
[1770460188395,0.01471,68016.0,68005.0,0.58924786]
[1770460188596,0.28991392,68014.0,67996.0,0.58181157]
[1770460189203,0.014711,68013.0,67996.0,0.58181157]
[1770460189706,0.014711,68013.0,67996.0,0.46424141]
[1770460190003,0.01481589,68018.0,67999.0,0.58181157]
[1770460190603,0.41571295,68034.0,68008.0,0.58181157]
[1770460190902,0.014708,68027.0,68008.0,0.58181157]
[1770460192204,0.014707,68031.0,68008.0,0.59652357]
[1770460192407,0.014708,68029.0,68008.0,0.59652357]
[1770460193904,0.014707,68032.0,68008.0,0.59652357]
[1770460196100,0.40264221,68032.0,67995.0,0.58181157]
[1770460196305,0.43785858,68070.0,67995.0,0.58181157]
[1770460196306,0.014712,68009.0,67995.0,0.58181157]
[1770460196504,0.014712,68009.0,67977.0,0.00018559]
[1770460196505,0.40264221,68011.0,67981.0,0.57881157]
[1770460196699,0.073537,68032.0,67960.0,0.58181157]
[1770460196700,0.52302677,67989.0,67960.0,0.58181157]
[1770460196901,0.52302677,67979.0,67951.0,0.58181157]
[1770460197104,0.014722,67964.0,67939.0,0.58181157]
[1770460197301,0.52302677,67965.0,67939.0,0.58181157]
[1770460197607,0.52302677,67961.0,67939.0,0.58181157]
[1770460197807,0.00016375,67960.0,67939.0,0.58181157]
[1770460198607,0.53349144,67960.0,67939.0,0.58181157]
[1770460198793,0.014724,67955.0,67939.0,0.58181157]
[1770460198998,0.014723,67958.0,67939.0,0.58181157]
[1770460199194,0.014719,67979.0,67917.0,0.0002]
[1770460199195,0.54521444,67996.0,67970.0,0.01472]
[1770460199502,0.014715,67995.0,67970.0,0.1514698]
[1770460199706,0.54521444,67990.0,67970.0,0.1514698]
[1770460200097,0.54696123,67988.0,67960.0,0.58181157]
[1770460200297,0.54696123,67985.0,67960.0,0.58181157]
[1770460200501,0.54696123,67985.0,67962.0,0.014722]
[1770460200699,0.54696123,67985.0,67965.0,0.014721]
[1770460201107,0.54696123,68016.0,67971.0,0.58181157]
[1770460201402,0.54696123,68016.0,67990.0,0.1514698]
[1770460201605,0.2468509,68036.0,67996.0,0.58181157]
[1770460201804,0.2468509,68036.0,67988.0,0.073583]
[1770460201805,0.2468509,68036.0,68014.0,0.014711]
[1770460202206,0.2468509,68036.0,68018.0,0.01471]
[1770460202501,0.014704,68045.0,68019.0,0.01471]
[1770460202906,0.24261067,68035.0,67999.0,0.58181157]
[1770460203212,0.24261067,68032.0,68002.0,0.58181157]
[1770460204307,0.014707,68031.0,68006.0,0.014712]
[1770460204807,0.014706,68035.0,68010.0,0.014712]
[1770460205302,0.014707,68033.0,68010.0,0.014712]
[1770460205811,0.014707,68033.0,68008.0,0.58181157]
[1770460206013,0.014707,68030.0,68008.0,0.58181157]
[1770460207203,0.014707,68030.0,68006.0,0.014712]
[1770460207411,0.014708,68027.0,68006.0,0.014712]
[1770460207607,0.29400568,68030.0,68009.0,0.014712]
[1770460207800,0.29400568,68030.0,68006.0,0.52731212]
[1770460208718,0.01471,68017.0,67995.0,0.014715]
[1770460208901,0.01471,68020.0,67995.0,0.54202712]
[1770460209108,0.27001094,68045.0,68012.0,0.014711]
[1770460209319,0.28471594,68042.0,68012.0,0.52731212]
[1770460209610,0.014704,68046.0,68019.0,0.52731212]
[1770460209815,0.27001094,68052.0,68024.0,0.52731212]
[1770460210015,0.014703,68051.0,68029.0,0.014708]
[1770460210204,0.014703,68051.0,68024.0,0.52731212]
[1770460210409,0.27488783,68061.0,68029.0,0.5532116]
[1770460211510,0.27488783,68061.0,68031.0,0.5532116]
[1770460212413,0.014702,68055.0,68031.0,0.5532116]
[1770460213509,0.0147,68065.0,68039.0,0.5532116]
[1770460213710,0.014701,68062.0,68039.0,0.5532116]
[1770460214509,0.014701,68062.0,68040.0,0.5679166]
[1770460215111,0.0147,68065.0,68040.0,0.5679166]
[1770460216315,0.014695,68088.0,68050.0,0.5532116]
[1770460216316,0.014698,68073.0,68050.0,0.5532116]
[1770460216623,0.014696,68082.0,68061.0,0.5679126]
[1770460217010,0.014697,68080.0,68061.0,0.5532116]
[1770460217210,0.014696,68084.0,68061.0,0.5532116]
[1770460217509,0.014696,68082.0,68061.0,0.5532116]
[1770460217708,0.014696,68086.0,68061.0,0.5679126]
[1770460218715,0.014699,68071.0,68052.0,0.5532116]
[1770460218915,0.014698,68075.0,68052.0,0.5532116]
[1770460220012,0.014698,68073.0,68052.0,0.5532116]
[1770460220413,0.014698,68073.0,68054.0,0.5532116]
[1770460222812,0.073464,68100.0,68065.0,0.0147]
[1770460222813,0.27257444,68095.0,68065.0,0.0147]
[1770460223017,0.27257444,68095.0,68065.0,0.5532116]
[1770460224323,0.014695,68086.0,68065.0,0.5532116]
[1770460225720,0.014696,68084.0,68065.0,0.5532116]
[1770460228427,0.014696,68082.0,68065.0,0.5532116]
[1770460229023,0.0147,68063.0,68052.0,0.5532116]
[1770460229220,0.0147,68066.0,68052.0,0.5532116]
[1770460229921,0.0147,68066.0,68052.0,0.43564144]
[1770460230525,0.014696,68085.0,68056.0,0.5532116]
[1770460230819,0.40781364,68086.0,68056.0,0.5532116]
[1770460231122,0.001,68066.0,68059.0,0.5532116]
[1770460231329,0.014698,68076.0,68059.0,0.5532116]
[1770460233534,0.014697,68079.0,68059.0,0.5532116]
[1770460235040,0.39896132,68084.0,68059.0,0.5532116]
[1770460235336,0.014698,68073.0,68059.0,0.5532116]
[1770460235925,0.014698,68073.0,68059.0,0.43564144]
[1770460238629,0.014699,68071.0,68059.0,0.43564144]
[1770460239225,0.001,68073.0,68042.0,0.11600832]
[1770460239226,0.014702,68054.0,68042.0,0.55261325]
[1770460239430,0.014702,68057.0,68042.0,0.55261325]
[1770460239934,0.014702,68057.0,68042.0,0.43503959]
[1770460240529,0.014702,68055.0,68042.0,0.43503959]
[1770460241031,0.50737885,68070.0,68054.0,0.55261325]
[1770460241032,0.014699,68070.0,68054.0,0.55261325]
[1770460241329,0.014699,68068.0,68054.0,0.55261325]
[1770460241534,0.0147,68066.0,68054.0,0.55261325]
[1770460243129,0.014696,68081.0,68054.0,0.55261325]
[1770460243334,0.57585727,68081.0,68054.0,0.55261325]
[1770460243734,0.0147,68067.0,68054.0,0.55261325]
[1770460244126,0.0147,68067.0,68054.0,0.54397985]
[1770460244528,0.0147,68065.0,68054.0,0.54397985]
[1770460245829,0.0157,68065.0,68054.0,0.54397985]
[1770460246740,0.0147,68063.0,68054.0,0.54397985]
[1770460247133,0.0147,68063.0,68054.0,0.54378]
[1770460248641,0.0157,68063.0,68054.0,0.54378]
[1770460249129,0.014697,68077.0,68054.0,0.54378]
[1770460250033,0.0147,68066.0,68054.0,0.54378]
[1770460250641,0.014702,68057.0,68043.0,0.55261325]
[1770460251134,0.014702,68057.0,68043.0,0.53617079]
[1770460251745,0.014701,68060.0,68043.0,0.53617079]
[1770460251929,0.014701,68058.0,68043.0,0.53617079]
[1770460252939,0.014701,68058.0,68043.0,0.44385636]
[1770460255435,0.014698,68072.0,68043.0,0.44385636]
[1770460256044,0.0147,68063.0,68045.0,0.55261325]
[1770460256240,0.57585727,68080.0,68047.0,0.55261325]
[1770460256838,0.0147,68066.0,68047.0,0.55261325]
[1770460257034,0.0147,68066.0,68049.0,0.55261325]
[1770460257241,0.014698,68073.0,68055.0,0.56731525]
[1770460257940,0.014698,68073.0,68050.0,0.15119411]
[1770460257941,0.57585727,68087.0,68058.0,0.55261325]
[1770460258140,0.014698,68076.0,68058.0,0.55261325]
[1770460258545,0.014699,68071.0,68058.0,0.55261325]
[1770460258942,0.01455788,68071.0,68058.0,0.55261325]
[1770460259243,0.01455788,68071.0,68045.0,0.17473353]
[1770460259244,0.014702,68054.0,68044.0,0.55261325]
[1770460259444,0.0147,68065.0,68044.0,0.55261325]
[1770460259648,0.014701,68060.0,68044.0,0.55261325]
[1770460259849,0.014701,68058.0,68044.0,0.55261325]
[1770460261551,0.014702,68056.0,68044.0,0.55261325]
[1770460264965,0.014699,68070.0,68044.0,0.55261325]
[1770460265246,0.014697,68077.0,68048.0,0.55261325]
[1770460265449,0.014698,68075.0,68050.0,0.55261325]
[1770460265853,0.57585727,68080.0,68050.0,0.55261325]
[1770460266750,0.014699,68068.0,68050.0,0.55261325]
[1770460267462,0.0147,68066.0,68050.0,0.55261325]
[1770460269061,0.0147,68065.0,68050.0,0.55261325]
[1770460269458,0.014701,68061.0,68042.0,0.5621449]
[1770460269758,0.014703,68050.0,68042.0,0.5621449]
[1770460270259,0.014703,68050.0,68042.0,0.47080651]
[1770460271057,0.014704,68044.0,68033.0,0.57969118]
[1770460271263,0.001,68050.0,68033.0,0.57969118]
[1770460271454,0.014702,68055.0,68033.0,0.57969118]
[1770460272160,0.014701,68058.0,68035.0,0.57969118]
[1770460272560,0.014702,68056.0,68037.0,0.57969118]
[1770460273562,0.56929056,68083.0,68051.0,0.57969118]
[1770460273767,0.014699,68072.0,68051.0,0.57969118]
[1770460274768,0.014699,68070.0,68051.0,0.57969118]
[1770460279669,0.014699,68068.0,68051.0,0.57969118]
[1770460283366,0.014699,68068.0,68052.0,0.2439]
[1770460283567,0.014699,68068.0,68051.0,0.57969118]
[1770460284677,0.014697,68078.0,68056.0,0.57969118]
[1770460285970,0.56929056,68090.0,68061.0,0.57969118]
[1770460286372,0.014696,68085.0,68063.0,0.57969118]
[1770460286577,0.014696,68083.0,68063.0,0.57969118]
[1770460287879,0.56929056,68090.0,68063.0,0.57969118]
[1770460287880,0.014695,68086.0,68063.0,0.57969118]
[1770460288078,0.014693,68096.0,68063.0,0.57969118]
[1770460288281,0.014695,68087.0,68065.0,0.57969118]
[1770460288781,0.014694,68093.0,68071.0,0.57969118]
[1770460288970,0.56929056,68106.0,68077.0,0.57969118]
[1770460289283,0.014691,68108.0,68088.0,0.57969118]
[1770460289676,0.01469,68111.0,68088.0,0.57969118]
[1770460289872,0.56929056,68116.0,68088.0,0.57969118]
[1770460290070,0.01482912,68121.0,68067.0,0.57969118]
[1770460290071,0.014695,68086.0,68067.0,0.57969118]
[1770460290272,0.014696,68084.0,68067.0,0.57969118]
[1770460290579,0.014696,68084.0,68052.0,0.21860735]
[1770460290580,0.014698,68074.0,68060.0,0.57801575]
[1770460290777,0.56929056,68080.0,68060.0,0.57801575]
[1770460291177,0.0147,68066.0,68051.0,0.57969118]
[1770460291381,0.56929056,68072.0,68041.0,0.57969118]
[1770460291578,0.56929056,68065.0,68041.0,0.57969118]
[1770460291880,0.56929056,68065.0,68033.0,0.57969118]
[1770460292067,0.014702,68057.0,68033.0,0.47860336]
[1770460292373,0.00015923,68056.0,68033.0,0.47860336]
[1770460293683,0.014703,68053.0,68033.0,0.46389636]
[1770460293883,0.014703,68051.0,68033.0,0.46389636]
[1770460294084,0.00015923,68056.0,68033.0,0.46389636]
[1770460294280,0.56944979,68056.0,68033.0,0.46389636]
[1770460294582,0.56944979,68056.0,68019.0,0.00012366]
[1770460294583,0.56929056,68038.0,68019.0,0.00012366]
[1770460294785,0.014709,68024.0,68001.0,0.57969118]
[1770460295277,0.014709,68024.0,68001.0,0.54969398]
[1770460295678,0.00011859,68023.0,68001.0,0.54969398]
[1770460295875,0.014709,68022.0,68001.0,0.54969398]
[1770460296079,0.014709,68022.0,68001.0,0.55069398]
[1770460296482,0.56136033,68022.0,67992.0,0.54168654]
[1770460296680,0.01471,68018.0,67992.0,0.54168654]
[1770460297287,0.01471,68018.0,67992.0,0.45418859]
[1770460298483,0.01482759,68023.0,67992.0,0.46890459]
[1770460298687,0.01482759,68023.0,67996.0,0.54168654]
[1770460299080,0.00011859,68023.0,67998.0,0.54168654]
[1770460299278,0.01471,68019.0,67998.0,0.54168654]
[1770460299886,0.014712,68009.0,67988.0,0.54168654]
[1770460300182,0.014713,68006.0,67988.0,0.47029256]
[1770460300880,0.014714,68000.0,67980.0,0.5418132]
[1770460301386,0.014713,68004.0,67980.0,0.5418132]
[1770460302185,0.014713,68004.0,67980.0,0.49571202]
[1770460302379,0.014714,68001.0,67980.0,0.49571202]
[1770460302978,0.014715,67994.0,67971.0,0.54168654]
[1770460303175,0.014714,67998.0,67971.0,0.54168654]
[1770460303379,0.014716,67991.0,67962.0,0.54168654]
[1770460303580,0.57607633,67991.0,67962.0,0.54168654]
[1770460304083,0.014717,67988.0,67962.0,0.54168654]
[1770460304387,0.56136033,67991.0,67962.0,0.4764266]
[1770460304880,0.56136033,67985.0,67962.0,0.4764266]
[1770460305588,0.014718,67982.0,67962.0,0.4764266]
[1770460305783,0.00015333,67981.0,67962.0,0.4764266]
[1770460306184,0.00015333,67981.0,67962.0,0.42419138]
[1770460306879,0.014716,67992.0,67968.0,0.54168654]
[1770460307081,0.01457488,67992.0,67968.0,0.54168654]
[1770460307390,0.014715,67995.0,67970.0,0.54168654]
[1770460307891,0.00015076,67994.0,67970.0,0.54168654]
[1770460308389,0.00015076,67994.0,67972.0,0.54168654]
[1770460308994,0.014715,67993.0,67972.0,0.54168654]
[1770460309693,0.00015076,67994.0,67972.0,0.54168654]
[1770460310288,0.014715,67993.0,67972.0,0.54168654]
[1770460313701,0.00015076,67994.0,67972.0,0.54168654]
[1770460314093,0.56136033,68009.0,67977.0,0.54168654]
[1770460314287,0.56136033,68009.0,67963.0,0.014722]
[1770460314288,0.014713,68003.0,67979.0,0.54168654]
[1770460314496,0.56136033,68009.0,67979.0,0.54168654]
[1770460315000,0.00015053,68008.0,67979.0,0.54168654]
[1770460315202,0.00015053,68008.0,67961.0,0.1215]
[1770460315203,0.014715,67994.0,67971.0,0.54168654]
[1770460315501,0.0001388,67993.0,67971.0,0.54168654]
[1770460316001,0.014716,67992.0,67971.0,0.54168654]
[1770460317710,0.014716,67990.0,67971.0,0.54168654]
[1770460319197,0.0001388,67993.0,67971.0,0.54168654]
[1770460319795,0.014717,67984.0,67971.0,0.54168654]
[1770460320206,0.014718,67980.0,67971.0,0.54168654]
[1770460321210,0.014719,67978.0,67963.0,0.54168654]
[1770460321400,0.00010593,67977.0,67963.0,0.54168654]